Cogmind - Beta 14 @@@ ROGUE MODE // 2025.01.19 @ 11:16:15 Player: SuperSwiss Result: Destroyed by G-34 Mercenary with Small Laser Performance ------------- Evolutions (0) 0 Regions Visited (1) 200 Robots Destroyed (9) 45 Value Destroyed (235) 235 Prototype IDs (0) 0 Alien Tech Used (0) 0 Bonus (0) 0 TOTAL SCORE: 480 Bonus ------- None Cogmind --------- Core Integrity 0/250 Matter 300/300 Energy 100/100 System Corruption 5% Temperature Cool (6) Movement Core (350) Ox6 Location -10/Materials Parts ------- > --- POWER (1) -------- (None) > --- PROPULSION (2) --- (None) > --- UTILITY (2) ------ Large Storage Unit > --- WEAPON (2) ------- (None) > --- INVENTORY (15) --- Structural Scanner ECM Suite Hacking Suite Grenade Launcher Datajack Mining Laser Peak State ------------ > --- POWER ------------ Light Ion Engine > --- PROPULSION ------- Light Treads Light Treads > --- UTILITY ---------- Small Storage Unit Seismic Detector > --- WEAPON ----------- EM Pulse Gun Small Laser > --- INVENTORY -------- (None) [Rating: 7] Favorites ----------- Power Light Ion Engine Engine Light Ion Engine Propulsion Light Treads Treads Light Treads Utility Seismic Detector Device Seismic Detector Storage Large Storage Unit Weapon EM Pulse Gun Energy Gun EM Pulse Gun Build | -11 -10 ------- Run | Yrd Mat Slots Evolved . | . . Power . | . . Propulsion . | . . Utility . | . . Weapon . | . . Parts Attached 11 | 7 4 Power 1 | 1 . Engine 1 | 1 . Core . | . . Reactor . | . . Propulsion 2 | 2 . Treads 2 | 2 . Leg . | . . Wheel . | . . Hover . | . . Flight . | . . Utility 3 | 2 1 Device 1 | 1 . Storage 2 | 1 1 Processor . | . . Hackware . | . . Protection . | . . Artifact . | . . Weapon 5 | 2 3 Energy Gun 5 | 2 3 Energy Cannon . | . . Ballistic Gun . | . . Ballistic Cannon . | . . Launcher . | . . Special Weapon . | . . Impact Weapon . | . . Slashing Weapon . | . . Piercing Weapon . | . . Special Melee Weapon . | . . Unidentified Prototypes . | . . Corrupted Parts 1 | . 1 System Corruption 4 | . 4 Parts Lost 7 | . 7 Power 1 | . 1 Propulsion 2 | . 2 Utility 1 | . 1 Weapon 3 | . 3 Highest Loss Streak 5 | . 5 To Critical Strikes . | . . Average Slot Usage (%) 89 | . 89 Engine 8 | . 8 Treads 26 | . 26 Device 13 | . 13 Storage 14 | . 14 Energy Gun 25 | . 25 Peak Build Rating 7 | 7 7 Average Rating 6 | 4 6 On Entrance 3 | . 7 Naked Turns . | . . Heaviest Build 28 | 12 28 Greatest Support 40 | 40 40 Greatest Overweight (x) 6 | . 6 Average Overweight (x) . | . . Largest Inventory Capacity 15 | 8 15 Average Capacity 12 | 7 13 Most Carried 6 | 5 6 Average Carried 4 | . 4 Final Capacity 15 | 8 15 Final Carried 6 | . 6 Class Distribution -------------------- 100% | Mutant Dominant Class ---------------- Mutant | -10/Materials Resources | -11 -10 ----------- Run | Yrd Mat Matter Collected 327 | 199 128 Remotely . | . . Salvage Created 296 | 39 257 Parts 18 | 7 11 Haulers Intercepted 1 | . 1 Recyclers Shooed . | . . Parts Field Recycled . | . . Retrieved Matter . | . . Parts Self-Destructed . | . . Prevented . | . . Kills | -11 -10 ------- Run | Yrd Mat Combat Hostiles Destroyed 5 | . 5 Guns 3 | . 3 AOE 2 | . 2 Classes Destroyed 4 | 1 3 Tunneler 2 | 2 . Hauler 1 | . 1 Operator 1 | . 1 Grunt 5 | . 5 Best Kill Streak 2 | 2 2 Combat Bots Only 2 | . 2 Max Kills in Single Turn 2 | 1 2 Gunslinging . | . . Exploded 2 | . 2 Melee . | . . Uniques/NPCs Destroyed . | . . Combat | -11 -10 -------- Run | Yrd Mat Hostile Shots Fired 70 | . 70 Missed 14 | . 14 Damage Taken 843 | . 843 Core 251 | . 251 Absorbed by Shields . | . . Core Remaining (%) 100 | 100 . Volleys Fired 41 | 5 36 Largest 2 | 2 2 Hottest 80 | 80 80 Shots Fired 60 | 10 50 Gun 60 | 10 50 Cannon . | . . Launcher . | . . Special . | . . Kinetic . | . . Thermal 29 | 5 24 Explosive . | . . Electromagnetic 31 | 5 26 Robot Hit Streak 7 | 6 7 Robot Miss Streak 5 | 2 5 Penetration Max . | . . Secondary Targets . | . . Shots Hit Robots 30 | 6 24 Core Hits 15 | 2 13 Critical Kills . | . . Critical Parts Destroyed . | . . Critical Strikes . | . . Melee Attacks . | . . Impact . | . . Slashing . | . . Piercing . | . . Sneak Attacks . | . . Combat Hostiles . | . . Follow-up Attacks . | . . Damage Inflicted 548 | 83 465 Guns 392 | 83 309 Cannons . | . . Explosions 156 | . 156 Melee . | . . Ramming . | . . Kinetic . | . . Thermal 229 | 31 198 Explosive . | . . Electromagnetic 319 | 52 267 Impact . | . . Slashing . | . . Piercing . | . . Highest Corruption 5 | . 5 Average Corruption 3 | . 3 Corruption Purged . | . . Corruption Blocked . | . . Effects 11 | . 11 Message Errors 2 | . 2 Matter Fused 3 | . 3 Heat Flow Errors 1 | . 1 Energy Discharges 1 | . 1 Parts Rejected 1 | . 1 Data Loss (major) 1 | . 1 Weapon Failures 2 | . 2 Overload Shots . | . . Overflow Damage . | . . Projectiles . | . . Explosions . | . . Melee . | . . Knockbacks . | . . Impact . | . . Kinetic . | . . Secondary . | . . Self-Inflicted Damage 132 | . 132 Shots 4 | . 4 Rammed . | . . Targets Rammed . | . . Kicked . | . . Crushed . | . . Highest Temperature 280 | 36 280 Average Temperature 105 | 19 120 Received Heat Transfer 402 | . 402 Siege Activations . | . . Robots Corrupted . | . . Combat Hostiles . | . . Parts Fried 1 | . 1 Impact Corruptions . | . . Robots Melted . | . . Combat Hostiles . | . . Parts Melted . | . . Heat Transferred 475 | 75 400 Parts Sabotaged . | . . Parts Stolen . | . . Parts Stripped . | . . Power Chain Reactions 2 | . 2 Alert | -11 -10 ------- Run | Yrd Mat Peak Influence 208 | 10 208 Initial 6 | . 6 Average 98 | 2 115 Maximum Alert Level 1 | . 1 Low Security (%) 83 | 100 80 Level 1 16 | . 19 Level 2 . | . . Level 3 . | . . Level 4 . | . . Level 5 . | . . High Security . | . . Max Security . | . . Squads Dispatched 3 | . 3 Investigation 1 | . 1 Extermination . | . . Reinforcement 2 | . 2 Assault . | . . Garrison . | . . Intercept . | . . Searches Triggered . | . . Construction Impeded . | . . Haulers Reinforced . | . . Active Scanning Responses . | . . Cargo Convoy Interrupts . | . . Stealth | -11 -10 --------- Run | Yrd Mat Distress Signals . | . . Communications Jammed . | . . Distress Signals . | . . Times Spotted 12 | . 12 Peak Tracking Total 3 | . 3 Tactical Retreats 1 | . 1 Traps | -11 -10 ------- Run | Yrd Mat Traps Triggered 2 | . 2 Indirectly . | . . Trap Hack Attempts . | . . Triggered . | . . Disarmed . | . . Reprogrammed . | . . Reused . | . . Traps Extracted . | . . Installed . | . . Triggered . | . . Machines | -11 -10 ---------- Run | Yrd Mat Machines Disabled 2 | . 2 Max in Single Turn 2 | . 2 Machines Repaired . | . . Machines Dismantled . | . . Machines Sabotaged . | . . Overloaded Fab Kills . | . . Hacking | -11 -10 --------- Run | Yrd Mat Machines Accessed 1 | . 1 Terminals 1 | . 1 Fabricators . | . . Repair Stations . | . . Recycling Units . | . . Scanalyzers . | . . Garrison Access . | . . Total Hacks 1 | . 1 Successful . | . . Failed 1 | . 1 Catastrophic 1 | . 1 Database Lockouts . | . . Manual 1 | . 1 Terminals 1 | . 1 Fabricators . | . . Repair Stations . | . . Recycling Units . | . . Scanalyzers . | . . Garrison Access . | . . Terminal Hacks . | . . Fabricator Hacks . | . . Repair Station Hacks . | . . Recycling Unit Hacks . | . . Scanalyzer . | . . Garrison Access Hacks . | . . Unauthorized Hacks . | . . Terminals . | . . Fabricators . | . . Repair Stations . | . . Recycling Units . | . . Scanalyzers . | . . Garrison Access . | . . Data Cores Recovered . | . . Used . | . . Hacking Detections 1 | . 1 Full Trace Events . | . . Feedback Events . | . . Feedback Blocked . | . . Robot Schematics Acquired . | . . Robots Built . | . . Authchips . | . . Time . | . . Total Robot Build Rating . | . . Part Schematics Acquired . | . . Parts Built . | . . Authchips . | . . Time . | . . Total Part Build Rating . | . . Parts Repaired . | . . Time . | . . Parts Recycled . | . . Recycled Matter . | . . Retrieved Matter . | . . Retrieved Components . | . . Parts Scanalyzed . | . . Part Schematics Acquired . | . . Parts Damaged . | . . Bothacking | -11 -10 ------------ Run | Yrd Mat Used RIF Installer . | . . Robots Hacked . | . . Non-combat . | . . Combat . | . . Robot Hacks Applied . | . . Relay Couplers Released . | . . Fabnet Peak Effective % . | . . Robots Rewired . | . . Allies Hacked . | . . Hacks Repelled . | . . Allies | -11 -10 -------- Run | Yrd Mat Total Allies . | . . Largest Group . | . . Highest-Rated Group . | . . Highest-Rated Ally . | . . Total Orders . | . . Ally Attacks . | . . Total Damage . | . . Kills . | . . Allies Corrupted . | . . Allies Melted . | . . Intel | -11 -10 ------- Run | Yrd Mat Robot Analysis Total . | . . Derelict Logs Recovered . | . . Drone Launches . | . . Drone Recoveries . | . . Exploration | -11 -10 ------------- Run | Yrd Mat Turns Passed 569 | 85 484 Spaces Moved 275 | 53 222 Core 30 | 25 5 Treads 245 | 28 217 Legs . | . . Wheels . | . . Hover . | . . Flight . | . . Fastest Speed 50 | 50 160 Average Speed 154 | 108 165 Slowest Speed 350 | 160 350 Overloaded Moves . | . . Propulsion Burnouts . | . . Robots Hopped . | . . Cave-ins Triggered . | . . Exploration Rate (%) 24 | 3 45 Regions Visited 1 Branch Regions . Pre-discovered Areas . | . . Known Exits Taken . | . . Unknown Exits Taken 1 | 1 . Scrap Searched . | . . Spaces Dug . | . . Terrain Destroyed 4 | . 4 Melee . | . . Projectile . | . . AOE 4 | . 4 Terrain Rammed . | . . Walls Destroyed . | . . Machines Disabled . | . . Actions | -11 -10 --------- Run | Yrd Mat Total 358 | 70 288 Wait 18 | . 18 Move 274 | 52 222 Hop . | . . Pick Up 12 | 6 6 Fast Attach 4 | 1 3 Attach 6 | 6 . Detach . | . . Swap 1 | . 1 Drop 2 | . 2 Fire 41 | 5 36 Melee . | . . Ram . | . . Kick . | . . Crush . | . . Escape Stasis . | . . Rewire . | . . Trap . | . . Miscellaneous . | . . Route ------- -11/Scrapyard -10/Materials (discovered 1 exit: [*Min]) History --------- Turn | Location | Event 14 | -11/Scrapyard | Discovered new exit (range 15) 86 | -11/Scrapyard | Entered Materials 300 | -10/Materials | Build established: Mutant 543 | -10/Materials | Discovered new exit (range 16) 557 | -10/Materials | Core integrity fell below 50% 566 | -10/Materials | Core integrity fell below 20% 570 | -10/Materials | Destroyed by G-34 Mercenary with Small Laser Last Messages --------------- 00447_ O-16 Technician destroyed. 00451_ Acquired Corrupted Hacking Suite. 00482_ Acquired 18 matter. 00487_ O-16 Technician: "IFF HANDSHAKE FAILED. SECURING TERMINAL." 00489_ K-01 Serf collects debris. 00491_ ALERT: Hostiles spotted, dispatching reinforcements to Terminal M001. 00508_ Triggered Explosive Trap. 00508_ An explosion rips through the floor. 00508_ Processing Tank disabled. 00520_ U-05 Engineer lays Concrete. 00523_ U-05 Engineer builds a Wall. 00527_ U-05 Engineer lays Concrete. 00540_ Seismic Detector destroyed. 00543_ EXIT=FOUND 00546_ Lgt. Treads destroyed. 00548_ EM Pulse Gun destroyed. 00551_ System corrupted: Substantial component data lost. 00552_ Critical hit (Burn: +37). 00554_ Lgt. Treads destroyed. 00556_ Sml. Laser destroyed. Map ----- +----------------------------------------------------+ | %# % #?????????????????????????????????? | | #"" #?????????????????????????????????? | | """" #"T #?????????????????????????????????? | | """" #"" #?????????????????????????????????? | | """" # #?????????????????????????????????? | | + #?????????????????????????????????? | | ########?????????????????????????????????? | | #????????????????????????????????????????? | | ##### #????????????????????????????????????????? | | ????# #????????????????????????????????????????? | | ????# #?????????????? ???????????????????????? | | ????# #????????????? ???????????????????????? | | ????# ##########????# ???????????????????????? | | ????# # #????# ???????????????????????? | | ????# # #????# ???????????????????????? | | ##### # #????# ???????????????????????? | | # #???## ###????????????????????? | | + #???# "#???????????????????? | | # #???# ""????????????????????? | | # #???# !!????????????????????? | | / % # #???# < "?????????????????????? | | = # = #???# |?????????????????????? | | =! ##########???# ??????????????????????? | | =! #????????????# ??????????????????????? | | #?????????????# #??????????????????????? | | #?????????????# @############???????????? | | ####?????????????# +????????? | | #?????????????#### ###???????????????? | | #????????????##! k r #?????????????????? | | #????????????#! #?????????????????? | | #????????????#! == #?????????????????? | | #????????????#! == #?????????????????? | | #????????????#! == #?????????????????? | | ##???????????##! g #?????????????????? | | #????????????#### g #?????????????????? | | ^ #???????????????# #?????????????????? | | ################## #?????????????????? | | #?????????????????? | | k #?????????????????? | | "" ##### #?????????????????? | | """ #???? #???????????????? | | """ " " #???? ?????????????? | | """ "T" ##########???? ???????????? | | """ """ #?????????????? ???????????? | | #?????????????? #####???????????? | | #?????????????? ##???????????????? | | # ####### #???????????????? #????????????????? | | ??????# #?????????????????#????????????????? | | ???????# #??????????????????????????????????? | | ????????# ??????????????????????????????????? | +----------------------------------------------------+ Best States ------------- Heat Dissipation 25 Energy Generation 10 Energy Capacity 125 Matter Stores 300 Matter Capacity 300 Sight Range 16 Terrain Scan Density 10 Evasion (%) 50 Recoil Reduction 2 Item Schematics ----------------- None Robot Schematics ------------------ None Fabricated ------------ Nothing Alien Tech Used ----------------- None Achievements -------------- None Challenges ------------ None Game ------ Seed MultinovaLargeEdition Manual? 0 Play Time 00:07:32 Cumulative 47.4 hours Start 2025.01.19 @ 11:09:49 End 2025.01.19 @ 11:16:15 Sessions 1 Manual Loads 0 Difficulty Rogue Special Mode None Game No. 54 Rogue 51 Adventurer 0 Explorer 3 Win Type - Total 0 Types 0/0/0/0/0/0/0/0/0 Lore% 10 Gallery% 34 Achievement% 30 Wizard Run 0 Options --------- Layout 0 ASCII 0 Keyboard 0 Movement Numpad Keybinds 0 Fullscreen 0 Font 16/SmallcapsGlow Map View 88x55 Zoom Use 0% Tactical HUD 1 Map Filters NONE Filters NONE Steam 1 RUN: 04cf4172-4a65-4ff6-abdd-72a665b41767